[Event "FIDE World Junior U20-ch Girls 2025"]
[Site "Petrovac"]
[Date "2025.03.02"]
[Round "6.8"]
[White "Rakshitta Ravi"]
[Black "Kaliakhmet, Elnaz"]
[Result "1-0"]
[Annotator "ChessBase"]
[ECO "B30"]
[WhiteElo "2365"]
[BlackElo "2242"]
[PlyCount "128"]
[EventDate "2025.02.23"]
[EventType "swiss"]
[EventCountry "MNE"]
[SourceTitle "playchess.com"]
[Source "ChessBase"]
[SourceQuality "1"]
[TimeControl "40/5400+30:1800+30"]

1. e4 {[%emt 0:01:36]} c5 {[%emt 0:00:10]} 2. Nf3 {[%emt 0:00:14]} Nc6 {[%emt 0:00:13]} 3. Nc3 {[%emt 0:00:18]} e5 {[%emt 0:00:32]} 4. Bc4 {[%emt 0:00:08]} d6 {[%emt 0:00:37]} 5. d3 {[%emt 0:00:04]} Be7 {[%emt 0:00:22]} 6. h3 {[%emt 0:00:14]} Nf6 {[%emt 0:00:40]} 7. Nh2 {[%emt 0:00:18]} a6 {[%emt 0:01:36]} 8. a4 {[%emt 0:00:05]} Be6 {[%emt 0:04:46]} 9. Ng4 {[%emt 0:01:14]} Rb8 {[%emt 0:12:35]} 10. Nd5 {[%emt 0:09:49]} Nxg4 {[%emt 0:08:26]} 11. hxg4 {[%emt 0:00:48]} b5 {[%emt 0:00:13]} 12. Ba2 {[%emt 0:05:28]} O-O {[%emt 0:06:31]} 13. c3 {[%emt 0:24:49]} Bg5 {[%emt 0:02:56]} 14. Be3 {[%emt 0:02:26]} Bxe3 {[%emt 0:03:30]} 15. Nxe3 {[%emt 0:02:26]} b4 {[%emt 0:00:46]} 16. Bd5 {[%emt 0:04:25]} Bxd5 {[%emt 0:15:07]} 17. exd5 {[%emt 0:00:05]} Na5 {[%emt 0:00:30]} 18. c4 {[%emt 0:00:48]} Qf6 {[%emt 0:00:11]} 19. Rb1 {[%emt 0:07:20]} b3 {[%emt 0:02:06]} 20. Qf3 {[%emt 0:07:32]} Qxf3 {[%emt 0:05:44]} 21. gxf3 {[%emt 0:00:01]} g6 {[%emt 0:00:01]} 22. Kd2 {[%emt 0:03:20]} Kg7 {[%emt 0:01:03]} 23. Rh3 {[%emt 0:03:03]} Rb4 {[%emt 0:01:28]} 24. Rbh1 {[%emt 0:02:34]} Rxa4 {[%emt 0:10:09]} 25. Rxh7+ {[%emt 0:06:08]} Kf6 {[%emt 0:00:16]} 26. Rg1 {[%emt 0:01:55]} Kg5 {[%emt 0:01:32]} 27. Nd1 {[%emt 0:01:46]} Ra1 {[%emt 0:01:48]} 28. Ke3 {[%emt 0:01:29]} Kf6 {[%emt 0:03:19]} 29. g5+ {[%emt 0:00:36]} Ke7 {[%emt 0:00:21]} 30. Kd2 {[%emt 0:00:06]} Nb7 {[%emt 0:01:11]} 31. Re1 {[%emt 0:01:55]} Kd7 {[%emt 0:00:51]} 32. Nc3 {[%emt 0:07:03]} Rxe1 {[%emt 0:01:06]} 33. Kxe1 {[%emt 0:00:01]} Ke7 {[%emt 0:00:23]} 34. Kd2 {[%emt 0:00:07]} a5 {[%emt 0:02:35]} 35. Ne4 {[%emt 0:02:28]} Ra8 {[%emt 0:03:35]} 36. Rh1 {[%emt 0:00:12]} Ra6 {[%emt 0:00:22]} 37. Rh8 {[%emt 0:01:23]} Kd7 {[%emt 0:01:42]} 38. Rh1 {[%emt 0:01:46]} Rb6 {[%emt 0:00:36]} 39. Kc3 {[%emt 0:00:51]} Rb4 {[%emt 0:01:29]} 40. Ra1 {[%emt 0:00:48]} Ke7 {[%emt 0:00:54]} 41. Ra3 {[%emt 0:31:48]} Kd7 {[%emt 0:33:25]} 42. Nd2 {[%emt 0:00:00]} a4 {[%emt 0:00:00]} 43. Ne4 {[%emt 0:00:00]} Kc7 {[%emt 0:00:00]} 44. Ra1 {[%emt 0:00:00]} Kb6 {[%emt 0:00:00]} 45. Kd2 {[%emt 0:00:00]} Kc7 {[%emt 0:00:00]} 46. Nc3 {[%emt 0:00:00]} Kd7 {[%emt 0:00:00]} 47. Nxa4 {[%emt 0:00:00]} Nd8 {[%emt 0:00:00]} 48. Nc3 {[%emt 0:00:00]} Rb7 {[%emt 0:00:00]} 49. Ne4 {[%emt 0:00:00]} Rb6 {[%emt 0:00:00]} 50. Kc3 {[%emt 0:00:00]} Kc7 {[%emt 0:00:00]} 51. Ra3 {[%emt 0:00:00]} Rb7 {[%emt 0:00:00]} 52. Ra6 {[%emt 0:00:00]} Rb8 {[%emt 0:00:00]} 53. Nxd6 {[%emt 0:00:00]} Kd7 {[%emt 0:00:00]} 54. Ne4 {[%emt 0:00:00]} Nb7 {[%emt 0:00:00]} 55. Rb6 {[%emt 0:00:00]} Kc7 {[%emt 0:00:00]} 56. Rc6+ {[%emt 0:00:00]} Kd7 {[%emt 0:00:00]} 57. Nxc5+ {[%emt 0:00:00]} Nxc5 {[%emt 0:00:00]} 58. Rxc5 {[%emt 0:00:00]} Rh8 {[%emt 0:00:00]} 59. Ra5 {[%emt 0:00:00]} Rh3 {[%emt 0:00:00]} 60. Ra7+ {[%emt 0:00:00]} Ke8 {[%emt 0:00:00]} 61. c5 {[%emt 0:00:00]} Rxf3 {[%emt 0:00:00]} 62. c6 {[%emt 0:00:00]} e4 {[%emt 0:00:00]} 63. Ra8+ {[%emt 0:00:00]} Ke7 {[%emt 0:00:00]} 64. c7 {[%emt 0:00:00]} Kd6 {[%emt 0:00:00]} 1-0

[Event "FIDE World Junior U20-ch Girls 2025"]
[Site "Petrovac"]
[Date "2025.03.02"]
[Round "6.9"]
[White "Nurgaliyeva, Zarina"]
[Black "Nurman, Alua"]
[Result "0-1"]
[Annotator "ChessBase"]
[ECO "B23"]
[WhiteElo "2265"]
[BlackElo "2336"]
[PlyCount "108"]
[EventDate "2025.02.23"]
[EventType "swiss"]
[EventCountry "MNE"]
[SourceTitle "playchess.com"]
[Source "ChessBase"]
[SourceQuality "1"]
[TimeControl "40/5400+30:1800+30"]

1. e4 {[%emt 0:00:03]} c5 {[%emt 0:00:06]} 2. Nc3 {[%emt 0:00:06]} Nc6 {[%emt 0:03:50]} 3. Bb5 {[%emt 0:00:09]} Nd4 {[%emt 0:00:19]} 4. Nf3 {[%emt 0:00:12]} e6 {[%emt 0:00:18]} 5. a4 {[%emt 0:09:57]} Ne7 {[%emt 0:10:34]} 6. Nxd4 {[%emt 0:02:52]} cxd4 {[%emt 0:04:03]} 7. Ne2 {[%emt 0:00:08]} a6 {[%emt 0:02:10]} 8. Bc4 {[%emt 0:02:47]} Nc6 {[%emt 0:01:26]} 9. d3 {[%emt 0:01:49]} Be7 {[%emt 0:10:12]} 10. O-O {[%emt 0:01:10]} O-O {[%emt 0:00:06]} 11. f4 {[%emt 0:04:37]} f5 {[%emt 0:10:29]} 12. Ng3 {[%emt 0:13:15]} g6 {[%emt 0:02:18]} 13. Bd2 {[%emt 0:14:12]} b6 {[%emt 0:13:51]} 14. Qe2 {[%emt 0:12:27]} Bb7 {[%emt 0:02:46]} 15. Rae1 {[%emt 0:00:31]} Kh8 {[%emt 0:00:59]} 16. Nh1 {[%emt 0:05:02]} Bh4 {[%emt 0:01:44]} 17. g3 {[%emt 0:02:11]} Be7 {[%emt 0:06:26]} 18. h4 {[%emt 0:02:48]} Bf6 {[%emt 0:06:40]} 19. Nf2 {[%emt 0:01:19]} Ne7 {[%emt 0:02:16]} 20. Bb4 {[%emt 0:07:48]} Ng8 {[%emt 0:06:54]} 21. Bxf8 {[%emt 0:04:08]} Qxf8 {[%emt 0:00:01]} 22. Kh2 {[%emt 0:08:57]} Nh6 {[%emt 0:03:13]} 23. Kh3 {[%emt 0:00:04]} Re8 {[%emt 0:04:23]} 24. g4 {[%emt 0:03:57]} fxg4+ {[%emt 0:00:06]} 25. Nxg4 {[%emt 0:00:03]} Nxg4 {[%emt 0:04:06]} 26. Qxg4 {[%emt 0:00:01]} d5 {[%emt 0:01:53]} 27. e5 {[%emt 0:01:06]} Bd8 {[%emt 0:00:25]} 28. Bb3 {[%emt 0:00:06]} Qh6 {[%emt 0:00:10]} 29. Kg3 {[%emt 0:00:52]} Rf8 {[%emt 0:00:16]} 30. Rh1 {[%emt 0:00:41]} Rf5 {[%emt 0:00:04]} 31. Re2 {[%emt 0:01:05]} Bc6 {[%emt 0:02:07]} 32. Rf2 {[%emt 0:00:58]} Be8 {[%emt 0:00:27]} 33. c3 {[%emt 0:00:49]} dxc3 {[%emt 0:00:38]} 34. bxc3 {[%emt 0:00:01]} Qf8 {[%emt 0:00:56]} 35. c4 {[%emt 0:01:04]} Qa3 {[%emt 0:01:10]} 36. Qd1 {[%emt 0:00:01]} d4 {[%emt 0:00:27]} 37. c5 {[%emt 0:00:47]} Qxc5 {[%emt 0:00:33]} 38. Bxe6 {[%emt 0:00:33]} Rxe5 {[%emt 0:00:24]} 39. Bg4 {[%emt 0:00:46]} Re3+ {[%emt 0:00:14]} 40. Rf3 {[%emt 0:00:12]} Re7 {[%emt 0:00:34]} 41. Qa1 {[%emt 0:06:29]} h5 {[%emt 0:09:13]} 42. Rc1 {[%emt 0:04:46]} Qd6 {[%emt 0:01:13]} 43. Bh3 {[%emt 0:03:34]} Re2 {[%emt 0:00:15]} 44. Bg2 {[%emt 0:01:51]} Qf6 {[%emt 0:04:28]} 45. Rh1 {[%emt 0:00:32]} Bc6 {[%emt 0:00:32]} 46. Qc1 {[%emt 0:02:41]} Qf5 {[%emt 0:03:25]} 47. Bh3 {[%emt 0:02:20]} Bxh4+ {[%emt 0:00:13]} 48. Kxh4 {[%emt 0:00:01]} Qf6+ {[%emt 0:00:02]} 49. Kg3 {[%emt 0:00:01]} h4+ {[%emt 0:00:09]} 50. Kg4 {[%emt 0:00:01]} Qf5+ {[%emt 0:03:31]} 51. Kxh4 {[%emt 0:00:27]} Qh5+ {[%emt 0:00:02]} 52. Kg3 {[%emt 0:00:01]} Qxf3+ {[%emt 0:00:07]} 53. Kh4 {[%emt 0:00:05]} Qh5+ {[%emt 0:02:06]} 54. Kg3 {[%emt 0:00:18]} Re3+ {[%emt 0:00:05]} 0-1

[Event "FIDE World Junior U20-ch Girls 2025"]
[Site "Petrovac"]
[Date "2025.03.02"]
[Round "6.10"]
[White "Kairbekova, Amina"]
[Black "Wang, Chuqiao"]
[Result "1/2-1/2"]
[Annotator "ChessBase"]
[ECO "C77"]
[WhiteElo "2336"]
[BlackElo "2227"]
[PlyCount "55"]
[EventDate "2025.02.23"]
[EventType "swiss"]
[EventCountry "MNE"]
[SourceTitle "playchess.com"]
[Source "ChessBase"]
[SourceQuality "1"]
[TimeControl "40/5400+30:1800+30"]

1. e4 {[%emt 0:00:28]} e5 {[%emt 0:00:11]} 2. Nf3 {[%emt 0:00:06]} Nc6 {[%emt 0:00:07]} 3. Bb5 {[%emt 0:00:03]} a6 {[%emt 0:00:10]} 4. Ba4 {[%emt 0:00:04]} Nf6 {[%emt 0:00:06]} 5. Nc3 {[%emt 0:00:05]} b5 {[%emt 0:00:07]} 6. Bb3 {[%emt 0:00:04]} Bc5 {[%emt 0:00:10]} 7. Nd5 {[%emt 0:00:11]} d6 {[%emt 0:00:52]} 8. c3 {[%emt 0:01:37]} h6 {[%emt 0:04:56]} 9. a4 {[%emt 0:00:13]} Bb7 {[%emt 0:15:04]} 10. d4 {[%emt 0:01:19]} exd4 {[%emt 0:01:54]} 11. cxd4 {[%emt 0:00:06]} Ba7 {[%emt 0:02:46]} 12. axb5 {[%emt 0:01:33]} axb5 {[%emt 0:00:10]} 13. O-O {[%emt 0:01:08]} Nxd5 {[%emt 0:06:12]} 14. Bxd5 {[%emt 0:04:54]} Bb6 {[%emt 0:02:04]} 15. Rxa8 {[%emt 0:04:20]} Bxa8 {[%emt 0:01:47]} 16. e5 {[%emt 0:04:10]} dxe5 {[%emt 0:01:59]} 17. Bxc6+ {[%emt 0:00:42]} Bxc6 {[%emt 0:00:13]} 18. Nxe5 {[%emt 0:00:05]} Bd7 {[%emt 0:10:43]} 19. Nxd7 {[%emt 0:03:31]} Qxd7 {[%emt 0:00:13]} 20. Re1+ {[%emt 0:00:07]} Kf8 {[%emt 0:00:54]} 21. Bd2 {[%emt 0:17:18]} Kg8 {[%emt 0:08:25]} 22. Bb4 {[%emt 0:02:14]} Qc6 {[%emt 0:10:30]} 23. Re7 {[%emt 0:17:58]} Kh7 {[%emt 0:12:21]} 24. d5 {[%emt 0:24:01]} Qf6 {[%emt 0:01:34]} 25. Re2 {[%emt 0:04:46]} Ra8 {[%emt 0:03:03]} 26. Bc3 {[%emt 0:00:07]} Qf5 {[%emt 0:00:56]} 27. Qf1 {[%emt 0:06:34]} Qxd5 {[%emt 0:07:36]} 28. Re5 {[%emt 0:00:05]} 1/2-1/2

[Event "FIDE World Junior U20-ch Girls 2025"]
[Site "Petrovac"]
[Date "2025.03.02"]
[Round "6.11"]
[White "Mikheeva, Galina"]
[Black "Toncheva, Nadya"]
[Result "0-1"]
[Annotator "ChessBase"]
[ECO "B10"]
[WhiteElo "2238"]
[BlackElo "2311"]
[PlyCount "126"]
[EventDate "2025.02.23"]
[EventType "swiss"]
[EventCountry "MNE"]
[SourceTitle "playchess.com"]
[Source "ChessBase"]
[SourceQuality "1"]
[TimeControl "40/5400+30:1800+30"]

1. c4 {[%emt 0:00:01]} c6 {[%emt 0:02:38]} 2. e4 {[%emt 0:00:13]} d5 {[%emt 0:00:03]} 3. cxd5 {[%emt 0:00:12]} cxd5 {[%emt 0:00:05]} 4. exd5 {[%emt 0:00:04]} Nf6 {[%emt 0:00:03]} 5. Qa4+ {[%emt 0:00:04]} Nbd7 {[%emt 0:00:54]} 6. Nc3 {[%emt 0:00:26]} g6 {[%emt 0:00:50]} 7. Bc4 {[%emt 0:00:06]} Bg7 {[%emt 0:00:36]} 8. d3 {[%emt 0:00:22]} O-O {[%emt 0:00:35]} 9. Nf3 {[%emt 0:00:12]} a6 {[%emt 0:04:45]} 10. Qa3 {[%emt 0:00:11]} Qc7 {[%emt 0:23:18]} 11. O-O {[%emt 0:33:53]} Nb6 {[%emt 0:00:59]} 12. Qb3 {[%emt 0:19:10]} Bg4 {[%emt 0:02:39]} 13. Be3 {[%emt 0:06:37]} Nc8 {[%emt 0:04:24]} 14. Qd1 {[%emt 0:05:08]} Nd6 {[%emt 0:06:16]} 15. Bb3 {[%emt 0:02:24]} Nf5 {[%emt 0:16:22]} 16. Rc1 {[%emt 0:12:49]} Qd6 {[%emt 0:02:15]} 17. h3 {[%emt 0:05:00]} Bh5 {[%emt 0:00:22]} 18. Nb1 {[%emt 0:05:17]} Nd7 {[%emt 0:08:40]} 19. Nbd2 {[%emt 0:02:27]} Bxf3 {[%emt 0:04:10]} 20. Qxf3 {[%emt 0:01:08]} Bxb2 {[%emt 0:00:33]} 21. Rb1 {[%emt 0:00:59]} Bg7 {[%emt 0:01:16]} 22. Nc4 {[%emt 0:02:31]} Qf6 {[%emt 0:02:59]} 23. Qe2 {[%emt 0:01:23]} Rac8 {[%emt 0:01:17]} 24. Rfc1 {[%emt 0:00:30]} Nd6 {[%emt 0:03:45]} 25. a4 {[%emt 0:00:42]} Rc7 {[%emt 0:06:52]} 26. Nb6 {[%emt 0:01:07]} Rxc1+ {[%emt 0:00:09]} 27. Rxc1 {[%emt 0:00:06]} Nxb6 {[%emt 0:00:14]} 28. Bxb6 {[%emt 0:00:06]} Nf5 {[%emt 0:02:45]} 29. a5 {[%emt 0:00:22]} Nd4 {[%emt 0:02:18]} 30. Bxd4 {[%emt 0:01:06]} Qxd4 {[%emt 0:00:04]} 31. Bc4 {[%emt 0:00:16]} Be5 {[%emt 0:01:06]} 32. Rb1 {[%emt 0:00:24]} Bd6 {[%emt 0:00:42]} 33. Kf1 {[%emt 0:00:36]} Rb8 {[%emt 0:00:56]} 34. Qe3 {[%emt 0:01:02]} Qc3 {[%emt 0:00:53]} 35. Qe1 {[%emt 0:00:01]} Qf6 {[%emt 0:01:15]} 36. Rb6 {[%emt 0:01:00]} Qf4 {[%emt 0:00:11]} 37. Qe4 {[%emt 0:00:34]} Qc1+ {[%emt 0:00:20]} 38. Qe1 {[%emt 0:00:25]} Qxe1+ {[%emt 0:00:04]} 39. Kxe1 {[%emt 0:00:02]} Bc7 {[%emt 0:00:04]} 40. Rb1 {[%emt 0:00:37]} Bxa5+ {[%emt 0:00:04]} 41. Ke2 {[%emt 0:30:09]} Bc7 {[%emt 0:30:58]} 42. d4 {[%emt 0:00:00]} Kf8 {[%emt 0:00:00]} 43. Bd3 {[%emt 0:00:00]} Ke8 {[%emt 0:00:00]} 44. g4 {[%emt 0:00:00]} h6 {[%emt 0:00:00]} 45. h4 {[%emt 0:00:00]} Kd7 {[%emt 0:00:00]} 46. Ke3 {[%emt 0:00:00]} Bd6 {[%emt 0:00:00]} 47. Be2 {[%emt 0:00:00]} g5 {[%emt 0:00:00]} 48. h5 {[%emt 0:00:00]} Kc7 {[%emt 0:00:00]} 49. Kd2 {[%emt 0:00:00]} Rd8 {[%emt 0:00:00]} 50. Kd3 {[%emt 0:00:00]} Bf4 {[%emt 0:00:00]} 51. Rb2 {[%emt 0:00:00]} Rd6 {[%emt 0:00:00]} 52. Bd1 {[%emt 0:00:00]} Rb6 {[%emt 0:01:37]} 53. Bb3 {[%emt 0:00:13]} Rb4 {[%emt 0:01:06]} 54. Kc3 {[%emt 0:00:40]} Bd6 {[%emt 0:00:13]} 55. Ra2 {[%emt 0:00:22]} Kb6 {[%emt 0:00:48]} 56. Bc2 {[%emt 0:02:42]} Ka7 {[%emt 0:00:32]} 57. Bb3 {[%emt 0:01:13]} Rb6 {[%emt 0:01:19]} 58. Re2 {[%emt 0:00:34]} Bb4+ {[%emt 0:02:13]} 59. Kd3 {[%emt 0:01:29]} Rf6 {[%emt 0:00:18]} 60. Ke3 {[%emt 0:00:43]} Rf4 {[%emt 0:01:31]} 61. f3 {[%emt 0:00:33]} Bc3 {[%emt 0:00:15]} 62. Kd3 {[%emt 0:01:50]} Rxf3+ {[%emt 0:00:10]} 63. Kc4 {[%emt 0:01:26]} Ba5 {[%emt 0:00:08]} 0-1

[Event "FIDE World Junior U20-ch Girls 2025"]
[Site "Petrovac"]
[Date "2025.03.02"]
[Round "6.12"]
[White "Zhurova, Anna"]
[Black "Kirtadze, Anastasia"]
[Result "1-0"]
[Annotator "ChessBase"]
[ECO "B12"]
[WhiteElo "2307"]
[BlackElo "2218"]
[PlyCount "81"]
[EventDate "2025.02.23"]
[EventType "swiss"]
[EventCountry "MNE"]
[SourceTitle "playchess.com"]
[Source "ChessBase"]
[SourceQuality "1"]
[TimeControl "40/5400+30:1800+30"]

1. e4 {[%emt 0:00:01]} c6 {[%emt 0:00:11]} 2. d4 {[%emt 0:00:13]} d5 {[%emt 0:00:07]} 3. e5 {[%emt 0:00:17]} Bf5 {[%emt 0:00:20]} 4. Nf3 {[%emt 0:00:25]} e6 {[%emt 0:00:50]} 5. Be2 {[%emt 0:00:25]} Nd7 {[%emt 0:00:49]} 6. O-O {[%emt 0:00:24]} a5 {[%emt 0:02:55]} 7. c4 {[%emt 0:01:04]} dxc4 {[%emt 0:07:30]} 8. Bxc4 {[%emt 0:00:26]} h6 {[%emt 0:06:05]} 9. Nc3 {[%emt 0:00:40]} Ne7 {[%emt 0:04:29]} 10. Be3 {[%emt 0:03:41]} Nb6 {[%emt 0:07:19]} 11. Bd3 {[%emt 0:00:52]} Nbd5 {[%emt 0:01:56]} 12. Ne4 {[%emt 0:02:02]} Ng6 {[%emt 0:05:52]} 13. a3 {[%emt 0:14:10]} Be7 {[%emt 0:03:42]} 14. Qd2 {[%emt 0:06:28]} h5 {[%emt 0:04:56]} 15. Bg5 {[%emt 0:06:33]} f6 {[%emt 0:06:52]} 16. exf6 {[%emt 0:02:51]} gxf6 {[%emt 0:00:26]} 17. Be3 {[%emt 0:00:28]} Kf7 {[%emt 0:06:08]} 18. Nc3 {[%emt 0:10:48]} Bxd3 {[%emt 0:02:00]} 19. Qxd3 {[%emt 0:00:03]} h4 {[%emt 0:01:00]} 20. Nd2 {[%emt 0:10:39]} Ngf4 {[%emt 0:06:56]} 21. Bxf4 {[%emt 0:00:55]} Nxf4 {[%emt 0:00:10]} 22. Qe4 {[%emt 0:00:31]} Qc7 {[%emt 0:06:08]} 23. Ne2 {[%emt 0:01:40]} Nxe2+ {[%emt 0:08:00]} 24. Qxe2 {[%emt 0:00:02]} h3 {[%emt 0:00:51]} 25. g3 {[%emt 0:00:23]} Rad8 {[%emt 0:02:17]} 26. Rfe1 {[%emt 0:04:41]} Qd6 {[%emt 0:02:43]} 27. Rad1 {[%emt 0:02:05]} Qd5 {[%emt 0:01:12]} 28. Nf3 {[%emt 0:00:59]} Rh5 {[%emt 0:04:48]} 29. Rd3 {[%emt 0:01:04]} Rd6 {[%emt 0:00:58]} 30. Re3 {[%emt 0:01:04]} Bd8 {[%emt 0:01:04]} 31. Re4 {[%emt 0:00:36]} Bb6 {[%emt 0:00:57]} 32. Ne5+ {[%emt 0:01:57]} Rxe5 {[%emt 0:01:20]} 33. dxe5 {[%emt 0:00:06]} fxe5 {[%emt 0:00:28]} 34. Qh5+ {[%emt 0:00:21]} Ke7 {[%emt 0:00:20]} 35. Qxh3 {[%emt 0:02:27]} Bd4 {[%emt 0:00:05]} 36. Qh7+ {[%emt 0:00:32]} Kd8 {[%emt 0:00:20]} 37. Qxb7 {[%emt 0:00:26]} Rd7 {[%emt 0:01:09]} 38. Qb8+ {[%emt 0:00:59]} Ke7 {[%emt 0:00:05]} 39. Rh4 {[%emt 0:00:55]} Rd8 {[%emt 0:02:03]} 40. Qc7+ {[%emt 0:01:14]} Kf6 {[%emt 0:00:26]} 41. Rh6+ {[%emt 0:30:20]} 1-0

[Event "FIDE World Junior U20-ch Girls 2025"]
[Site "Petrovac"]
[Date "2025.03.02"]
[Round "6.13"]
[White "Khamdamova, Afruza"]
[Black "Tarasenka, Aliaksandra"]
[Result "1-0"]
[Annotator "ChessBase"]
[ECO "B40"]
[WhiteElo "2354"]
[BlackElo "2139"]
[PlyCount "141"]
[EventDate "2025.02.23"]
[EventType "swiss"]
[EventCountry "MNE"]
[SourceTitle "playchess.com"]
[Source "ChessBase"]
[SourceQuality "1"]
[TimeControl "40/5400+30:1800+30"]

1. e4 {[%emt 0:00:04]} c5 {[%emt 0:00:11]} 2. Nf3 {[%emt 0:00:09]} e6 {[%emt 0:00:06]} 3. b3 {[%emt 0:01:19]} a6 {[%emt 0:01:35]} 4. Bb2 {[%emt 0:00:14]} d5 {[%emt 0:00:27]} 5. exd5 {[%emt 0:00:22]} exd5 {[%emt 0:00:11]} 6. Qe2+ {[%emt 0:00:04]} Qe7 {[%emt 0:22:38]} 7. Nc3 {[%emt 0:00:42]} Nf6 {[%emt 0:02:52]} 8. O-O-O {[%emt 0:00:10]} Nc6 {[%emt 0:18:19]} 9. h3 {[%emt 0:00:37]} h6 {[%emt 0:10:30]} 10. d4 {[%emt 0:08:55]} Qxe2 {[%emt 0:08:22]} 11. Bxe2 {[%emt 0:03:10]} Be6 {[%emt 0:02:28]} 12. Rhe1 {[%emt 0:15:10]} cxd4 {[%emt 0:04:05]} 13. Nxd4 {[%emt 0:03:50]} Nxd4 {[%emt 0:00:14]} 14. Rxd4 {[%emt 0:00:04]} Bc5 {[%emt 0:01:04]} 15. Rf4 {[%emt 0:01:06]} Bd6 {[%emt 0:09:08]} 16. Rf3 {[%emt 0:02:03]} O-O {[%emt 0:07:00]} 17. Bd3 {[%emt 0:08:35]} Nd7 {[%emt 0:01:25]} 18. Ne2 {[%emt 0:08:53]} Nc5 {[%emt 0:02:47]} 19. Nd4 {[%emt 0:05:18]} Nxd3+ {[%emt 0:00:55]} 20. Rxd3 {[%emt 0:00:05]} Bd7 {[%emt 0:00:58]} 21. Nf3 {[%emt 0:05:15]} Be6 {[%emt 0:01:23]} 22. Be5 {[%emt 0:00:07]} Ba3+ {[%emt 0:00:50]} 23. Kd1 {[%emt 0:01:00]} Bf5 {[%emt 0:00:48]} 24. Rxd5 {[%emt 0:04:38]} Rfd8 {[%emt 0:00:36]} 25. Rd2 {[%emt 0:00:31]} f6 {[%emt 0:01:35]} 26. Bd4 {[%emt 0:00:50]} Rac8 {[%emt 0:00:32]} 27. c3 {[%emt 0:00:19]} Kf7 {[%emt 0:01:17]} 28. Bb6 {[%emt 0:07:21]} Rd7 {[%emt 0:00:46]} 29. Rxd7+ {[%emt 0:01:31]} Bxd7 {[%emt 0:00:01]} 30. Kd2 {[%emt 0:00:07]} Bd6 {[%emt 0:00:52]} 31. Nd4 {[%emt 0:03:40]} Be5 {[%emt 0:00:19]} 32. h4 {[%emt 0:01:50]} h5 {[%emt 0:00:37]} 33. g3 {[%emt 0:00:12]} Bxd4 {[%emt 0:01:19]} 34. Bxd4 {[%emt 0:00:27]} Re8 {[%emt 0:00:39]} 35. Be3 {[%emt 0:00:17]} Bg4 {[%emt 0:00:31]} 36. c4 {[%emt 0:00:31]} Rd8+ {[%emt 0:00:19]} 37. Kc1 {[%emt 0:00:48]} Re8 {[%emt 0:00:29]} 38. Kd2 {[%emt 0:01:14]} Rd8+ {[%emt 0:00:14]} 39. Kc2 {[%emt 0:00:03]} Rd7 {[%emt 0:01:00]} 40. a4 {[%emt 0:04:06]} Bf3 {[%emt 0:00:31]} 41. a5 {[%emt 0:33:27]} Kg6 {[%emt 0:06:49]} 42. Kc3 {[%emt 0:00:00]} Rd1 {[%emt 0:09:02]} 43. Rxd1 {[%emt 0:00:00]} Bxd1 {[%emt 0:00:01]} 44. b4 {[%emt 0:00:00]} Kf5 {[%emt 0:00:50]} 45. b5 {[%emt 0:00:00]} axb5 {[%emt 0:00:54]} 46. cxb5 {[%emt 0:00:00]} g5 {[%emt 0:04:18]} 47. Bd4 {[%emt 0:00:00]} gxh4 {[%emt 0:01:24]} 48. gxh4 {[%emt 0:00:00]} Ke6 {[%emt 0:01:15]} 49. Kc4 {[%emt 0:00:00]} f5 {[%emt 0:01:45]} 50. Kc5 {[%emt 0:00:00]} Bf3 {[%emt 0:01:17]} 51. Be3 {[%emt 0:00:00]} Be4 {[%emt 0:03:05]} 52. Bf4 {[%emt 0:00:00]} Bf3 {[%emt 0:00:58]} 53. a6 {[%emt 0:02:26]} bxa6 {[%emt 0:00:06]} 54. bxa6 {[%emt 0:00:01]} Be4 {[%emt 0:00:28]} 55. Kd4 {[%emt 0:00:04]} Bf3 {[%emt 0:00:43]} 56. Ke3 {[%emt 0:00:04]} Be4 {[%emt 0:01:03]} 57. Bb8 {[%emt 0:00:05]} Kf6 {[%emt 0:02:10]} 58. Kf4 {[%emt 0:00:03]} Bc6 {[%emt 0:02:00]} 59. a7 {[%emt 0:00:15]} Bb7 {[%emt 0:01:22]} 60. Be5+ {[%emt 0:00:26]} Ke6 {[%emt 0:00:36]} 61. Bc3 {[%emt 0:00:25]} Be4 {[%emt 0:00:27]} 62. Kg5 {[%emt 0:00:07]} Bf3 {[%emt 0:00:13]} 63. Bb2 {[%emt 0:00:03]} Kf7 {[%emt 0:00:50]} 64. Kxf5 {[%emt 0:00:04]} Ke7 {[%emt 0:00:18]} 65. Ba3+ {[%emt 0:00:32]} Kd7 {[%emt 0:00:38]} 66. Ke5 {[%emt 0:00:30]} Kc7 {[%emt 0:00:21]} 67. Bc5 {[%emt 0:01:21]} Kb7 {[%emt 0:00:39]} 68. Kf4 {[%emt 0:00:08]} Bd5 {[%emt 0:00:26]} 69. Ke3 {[%emt 0:00:06]} Kc8 {[%emt 0:00:29]} 70. f4 {[%emt 0:00:02]} Kd7 {[%emt 0:00:21]} 71. Kd4 {[%emt 0:00:03]} 1-0